bitfinex/quotes_BTCUSD_20250822
["timestamp","ask_amount","ask_price","bid_price","bid_amount"]
[1755833021079,0.40154,113470.0,113450.0,0.00348]
[1755833021254,0.40054,113470.0,113450.0,0.00348]
[1755833021599,0.40154,113470.0,113450.0,0.00348]
[1755833022234,0.40154,113470.0,113460.0,0.00212]
[1755833022448,0.40154,113470.0,113460.0,0.0051]
[1755833023556,0.40154,113470.0,113450.0,0.0005]
[1755833023806,0.40054,113470.0,113450.0,0.00348]
[1755833024158,0.40154,113470.0,113450.0,0.00348]
[1755833024362,0.40054,113470.0,113450.0,0.00348]
[1755833024565,0.40054,113470.0,113460.0,0.00212]
[1755833024765,0.40154,113470.0,113460.0,0.0051]
[1755833024997,0.39964,113470.0,113460.0,0.0051]
[1755833025290,0.40154,113470.0,113460.0,0.0051]
[1755833025490,0.40054,113470.0,113460.0,0.0051]
[1755833025693,0.40154,113470.0,113460.0,0.0051]
[1755833025902,0.40154,113470.0,113460.0,0.00298]
[1755833026105,0.40154,113470.0,113450.0,0.00348]
[1755833026977,0.40054,113470.0,113450.0,0.00348]
[1755833027277,0.40154,113470.0,113450.0,0.00348]
[1755833031077,0.448597,113470.0,113450.0,0.00348]
[1755833032633,0.449787,113470.0,113450.0,0.00348]
[1755833032871,0.448597,113470.0,113450.0,0.00348]
[1755833034872,0.449787,113470.0,113450.0,0.00348]
[1755833035531,0.448597,113470.0,113450.0,0.00348]
[1755833035883,0.40154,113470.0,113450.0,0.00348]
[1755833038150,0.2529,113470.0,113460.0,0.00215]
[1755833038326,0.40122,113470.0,113460.0,0.00537]
[1755833039761,0.40022,113470.0,113460.0,0.00537]
[1755833040674,0.39832,113470.0,113460.0,0.00537]
[1755833041131,0.40022,113470.0,113460.0,0.00537]
[1755833041325,0.40122,113470.0,113460.0,0.00537]
[1755833042583,0.39932,113470.0,113460.0,0.00537]
[1755833042787,0.251,113470.0,113460.0,0.00537]
[1755833043204,0.251,113470.0,113460.0,0.031882]
[1755833043629,0.001,113470.0,113460.0,0.031882]
[1755833044847,0.14824,113480.0,113460.0,0.031882]
[1755833045254,0.14824,113480.0,113460.0,0.032882]
[1755833045452,0.18679856,113480.0,113460.0,0.032882]
[1755833045881,0.14824,113480.0,113460.0,0.032882]
[1755833046080,0.14824,113480.0,113460.0,0.028662]
[1755833046283,0.14824,113480.0,113470.0,0.00322]
[1755833046492,0.14934,113480.0,113470.0,0.00322]
[1755833047303,0.39934,113480.0,113470.0,0.00322]
[1755833047505,0.39924,113480.0,113470.0,0.00537]
[1755833048063,0.39824,113480.0,113470.0,0.00537]
[1755833048260,0.39924,113480.0,113470.0,0.00537]
[1755833048494,0.39934,113480.0,113470.0,0.00537]
[1755833048857,0.2511,113480.0,113470.0,0.00537]
[1755833049143,0.39934,113480.0,113470.0,0.00537]
[1755833053189,0.251,113480.0,113470.0,0.00537]
[1755833053414,0.39924,113480.0,113470.0,0.00537]
[1755833055544,0.40114,113480.0,113470.0,0.00537]
[1755833057493,0.39924,113480.0,113470.0,0.00537]
[1755833059715,0.39924,113480.0,113470.0,0.031881]
[1755833063795,0.39934,113480.0,113470.0,0.031881]
[1755833064013,0.39934,113480.0,113470.0,0.026511]
[1755833064382,0.439392,113480.0,113470.0,0.026511]
[1755833067870,0.39934,113480.0,113470.0,0.026511]
[1755833072238,0.39934,113480.0,113470.0,0.029601]
[1755833077068,0.39934,113480.0,113470.0,0.031611]
[1755833078715,0.39924,113480.0,113470.0,0.031611]
[1755833082157,0.40113,113480.0,113470.0,0.031611]
[1755833082868,0.22280873,113480.0,113470.0,0.031611]
[1755833083081,0.22280873,113480.0,113470.0,0.029601]
[1755833092847,0.22280873,113480.0,113470.0,0.00309]
[1755833093089,0.22280873,113480.0,113470.0,0.00515]
[1755833093286,0.22091873,113480.0,113470.0,0.00515]
[1755833094478,0.07267873,113480.0,113470.0,0.00515]
[1755833094914,0.07167873,113480.0,113470.0,0.031661]
[1755833095341,0.14816,113490.0,113470.0,0.00515]
[1755833095589,5.3657286,113490.0,113470.0,0.00515]
[1755833095768,0.1708616,113490.0,113470.0,0.00615]
[1755833095966,0.1708616,113490.0,113480.0,0.00317]
[1755833096146,0.1727616,113490.0,113480.0,0.00317]
[1755833096519,0.16657026,113490.0,113480.0,0.00317]
[1755833096727,0.41657026,113490.0,113480.0,0.00317]
[1755833096950,0.41757026,113490.0,113470.0,0.00417]
[1755833097156,0.42376128,113490.0,113480.0,0.00317]
[1755833097354,0.41757026,113490.0,113480.0,0.00317]
[1755833098039,0.41757026,113490.0,113460.0,0.03091782]
[1755833098040,0.40106,113490.0,113470.0,0.00317]
[1755833098252,0.40006,113490.0,113470.0,0.00317]
[1755833098629,0.40106,113490.0,113470.0,0.00317]
[1755833098834,0.40106,113490.0,113470.0,0.029681]
[1755833099409,0.40006,113490.0,113470.0,0.029681]
[1755833099638,0.40106,113490.0,113470.0,0.029681]
[1755833100228,0.40106,113490.0,113470.0,0.026511]
[1755833100446,0.251,113490.0,113480.0,0.00523]
[1755833100697,0.251,113490.0,113480.0,0.07566804]
[1755833100922,0.251,113490.0,113480.0,0.10217404]
[1755833101145,0.001,113490.0,113480.0,0.10217404]
[1755833101374,0.02300746,113500.0,113480.0,0.10217404]
[1755833101618,0.02348907,113500.0,113490.0,0.00537283]
[1755833101881,0.00048161,113500.0,113490.0,0.00743283]
[1755833102078,0.01824428,113500.0,113490.0,0.00743283]
[1755833102338,0.00048161,113500.0,113490.0,0.00743283]
[1755833102566,0.00048161,113500.0,113490.0,0.03393783]
[1755833102891,0.00048161,113500.0,113490.0,0.03593783]
[1755833103326,0.01822835,113500.0,113490.0,0.03593783]
[1755833103931,0.01822835,113500.0,113490.0,0.03793783]
[1755833121204,0.01822835,113500.0,113490.0,0.035735]
[1755833125266,0.01822835,113500.0,113490.0,0.03793783]
[1755833128949,0.01822835,113500.0,113490.0,0.035735]
[1755833129360,0.01822835,113500.0,113490.0,0.03793783]
[1755833131679,0.01822835,113500.0,113490.0,0.035735]
[1755833131889,0.01822835,113500.0,113490.0,0.04014066]
[1755833132290,0.01822835,113500.0,113490.0,0.035735]
[1755833132501,0.01822835,113500.0,113490.0,0.04014066]
[1755833133127,0.01822835,113500.0,113490.0,0.035735]
[1755833133331,0.01822835,113500.0,113490.0,0.04014066]
[1755833139656,0.01822835,113500.0,113490.0,0.05758968]
[1755833141667,0.01822835,113500.0,113490.0,0.05538685]
[1755833143531,0.01822835,113500.0,113490.0,0.05758968]
[1755833144446,0.01822835,113500.0,113490.0,0.32428968]
[1755833144658,0.01822835,113500.0,113490.0,0.31988402]
[1755833149711,0.0678,113540.0,113490.0,0.31988402]
[1755833149910,0.06794441,113540.0,113500.0,0.00440528]
[1755833150133,0.06794441,113540.0,113500.0,0.00763528]
[1755833150539,0.06794441,113540.0,113510.0,0.026499]
[1755833151142,0.25,113520.0,113510.0,0.026499]
[1755833151943,0.26610129,113520.0,113510.0,0.026499]
[1755833153067,0.26710129,113520.0,113510.0,0.026499]
[1755833153498,0.26710129,113520.0,113510.0,0.02870144]
[1755833155130,0.26710129,113520.0,113510.0,0.026499]
[1755833155338,0.26710129,113520.0,113510.0,0.02870144]
[1755833157554,0.26710129,113520.0,113510.0,0.026499]
[1755833160955,0.26710129,113520.0,113500.0,0.0005]
[1755833161161,0.26710129,113520.0,113510.0,0.026503]
[1755833162022,0.26710129,113520.0,113500.0,0.0005]
[1755833162262,0.26710129,113520.0,113500.0,0.027004]
[1755833162471,0.26610129,113520.0,113500.0,0.027004]
[1755833162698,0.26710129,113520.0,113500.0,0.027004]
[1755833162900,0.26710129,113520.0,113500.0,0.030234]
[1755833163111,0.41506129,113520.0,113500.0,0.03243664]
[1755833163317,0.41506129,113520.0,113500.0,0.030234]
[1755833163976,0.41506129,113520.0,113500.0,0.03243664]
[1755833165339,0.41506129,113520.0,113500.0,0.030234]
[1755833165537,0.41506129,113520.0,113500.0,0.027004]
[1755833165998,0.41506129,113520.0,113500.0,0.030234]
[1755833173709,0.41506129,113520.0,113500.0,0.027004]
[1755833173927,0.41506129,113520.0,113500.0,0.030234]
[1755833181705,0.26710129,113520.0,113500.0,0.027004]
[1755833181957,0.41502129,113520.0,113510.0,0.00503]
[1755833182186,0.26710129,113520.0,113510.0,0.00503]
[1755833182408,0.26710129,113520.0,113510.0,0.031531]
[1755833182892,0.01710129,113520.0,113510.0,0.00503]
[1755833183121,0.01610129,113520.0,113510.0,0.00503]
[1755833183384,0.64792,113530.0,113510.0,0.00603]
[1755833183675,5.342787,113530.0,113510.0,0.00603]
[1755833183895,0.14792,113530.0,113510.0,0.00603]
[1755833184109,0.64792,113530.0,113510.0,0.03253]
[1755833184318,5.342787,113530.0,113510.0,0.03253]
[1755833184580,0.14792,113530.0,113510.0,0.03253]
[1755833184793,0.64792,113530.0,113510.0,0.03353]
[1755833184926,5.35831302,113530.0,113510.0,0.03253]
[1755833185169,0.16344602,113530.0,113510.0,0.03253]
[1755833185407,0.66444602,113530.0,113510.0,0.03253]
[1755833188115,0.16444602,113530.0,113510.0,0.03253]
[1755833193066,0.16444602,113530.0,113510.0,0.00603]
[1755833194334,0.01502602,113530.0,113510.0,0.00603]
[1755833195584,0.16290602,113530.0,113510.0,0.00603]
[1755833198020,0.01502602,113530.0,113510.0,0.00603]
[1755833198231,0.01502602,113530.0,113510.0,0.00823244]
[1755833198500,0.16290602,113530.0,113520.0,0.00294]
[1755833198881,0.16290602,113530.0,113510.0,0.03264244]
[1755833199102,0.0678,113550.0,113510.0,0.03264244]
[1755833199293,4.694867,113540.0,113510.0,0.03278685]
[1755833199468,4.70106606,113540.0,113510.0,0.03178685]
[1755833199704,0.00619906,113540.0,113510.0,0.03178685]
[1755833199917,0.25,113530.0,113510.0,0.03178685]
[1755833200111,0.251,113530.0,113510.0,0.03178685]
[1755833200403,0.39788,113530.0,113510.0,0.03178685]
[1755833201018,0.41378482,113530.0,113510.0,0.03178685]
[1755833201679,0.41378482,113530.0,113520.0,0.00294]
[1755833201860,0.26590482,113530.0,113510.0,0.02884685]
[1755833202058,0.26590482,113530.0,113510.0,0.03178685]
[1755833202469,0.26590482,113530.0,113510.0,0.00528685]
[1755833203240,0.26590482,113530.0,113520.0,0.0265]
[1755833204802,0.26590482,113530.0,113520.0,0.02944]
[1755833205428,0.26590482,113530.0,113520.0,0.0265]
[1755833206034,0.26590482,113530.0,113520.0,0.02944]
[1755833206881,0.26590482,113530.0,113520.0,0.0265]
[1755833207635,0.41374482,113530.0,113520.0,0.02965]
[1755833209310,0.41374482,113530.0,113520.0,0.0265]
[1755833210974,0.41374482,113530.0,113520.0,0.02965]
[1755833211631,0.41374482,113530.0,113520.0,0.0265]
[1755833213623,0.4551193,113530.0,113520.0,0.0265]
[1755833213827,0.4551193,113530.0,113510.0,0.00014441]
[1755833214033,0.41374482,113530.0,113510.0,0.02664541]
[1755833216061,0.41374482,113530.0,113510.0,0.00014441]
[1755833216440,0.41374482,113530.0,113510.0,0.00329441]
[1755833216632,0.26590482,113530.0,113510.0,0.00329441]
[1755833216852,0.14784,113520.0,113510.0,0.00329441]
[1755833217071,0.14784,113520.0,113510.0,0.00539441]
[1755833217311,0.16374482,113530.0,113510.0,0.00539441]
[1755833217522,0.16374482,113530.0,113510.0,0.03189441]
[1755833217738,0.16374482,113530.0,113510.0,0.02874441]
[1755833217881,0.16374482,113530.0,113520.0,0.00315]
[1755833218092,0.16374482,113530.0,113520.0,0.00525]
[1755833218529,0.16374482,113530.0,113520.0,0.00315]
[1755833218754,0.41374482,113530.0,113520.0,0.00315]
[1755833220230,0.41374482,113530.0,113520.0,0.00525]
[1755833220436,0.26590482,113530.0,113520.0,0.00525]
[1755833220660,0.41370482,113530.0,113520.0,0.00525]
[1755833223558,0.41370482,113530.0,113520.0,0.031748]
[1755833228548,0.4274953,113530.0,113520.0,0.031748]
[1755833229031,0.4274953,113530.0,113520.0,0.026498]
[1755833229233,0.4274953,113530.0,113510.0,0.00329441]
[1755833229461,0.4274953,113530.0,113510.0,0.02979341]
[1755833230080,0.25721038,113530.0,113510.0,0.02979341]
[1755833231265,0.16159048,113530.0,113510.0,0.02979341]
[1755833231481,0.19018707,113530.0,113510.0,0.02979341]
[1755833232558,0.19018707,113530.0,113510.0,0.03079341]
[1755833232771,0.19018707,113530.0,113510.0,0.03179341]
[1755833234171,0.0678,113540.0,113510.0,0.03179341]
[1755833234388,0.01379082,113530.0,113510.0,0.00529441]
[1755833234824,0.01379082,113530.0,113520.0,0.026498]
[1755833235265,0.04218685,113530.0,113520.0,0.026498]
[1755833236587,0.04218685,113530.0,113520.0,0.027498]
[1755833236971,0.04218685,113530.0,113520.0,0.028498]
[1755833238601,0.04218685,113530.0,113520.0,0.031688]
[1755833240193,0.04218685,113530.0,113520.0,0.028498]
[1755833240407,0.04218685,113530.0,113520.0,0.031688]
[1755833241778,0.04218685,113530.0,113520.0,0.028498]
[1755833244710,0.04218685,113530.0,113520.0,0.031688]
[1755833246642,0.04218685,113530.0,113520.0,0.033648]
[1755833247291,0.04218685,113530.0,113520.0,0.002]
[1755833251902,0.54218685,113530.0,113520.0,0.002]
[1755833252116,5.23705385,113530.0,113510.0,0.00333441]
[1755833252341,0.14776,113520.0,113510.0,0.00014441]
[1755833252761,0.14776,113520.0,113510.0,0.00333441]
[1755833253417,0.14776,113520.0,113510.0,0.00114441]
[1755833253634,0.14776,113520.0,113510.0,0.00414441]
[1755833253866,0.14776,113520.0,113510.0,0.00733441]
[1755833254714,0.14776,113520.0,113510.0,0.00633441]
[1755833255057,0.14776,113520.0,113510.0,0.00733441]
[1755833258621,0.14776,113520.0,113510.0,0.00929441]
[1755833259104,0.16155227,113520.0,113510.0,0.00929441]
[1755833267842,0.14776,113520.0,113510.0,0.00929441]
[1755833269647,0.52816259,113530.0,113510.0,0.00929441]
[1755833269863,0.02816259,113530.0,113510.0,0.00929441]
[1755833270310,0.026502,113540.0,113510.0,0.00929441]
[1755833270541,4.694867,113530.0,113510.0,0.00929441]
[1755833270756,4.70865908,113530.0,113510.0,0.00829441]
[1755833271021,0.14776,113520.0,113510.0,0.00529441]
[1755833272204,0.14776,113520.0,113510.0,0.00629441]
[1755833272854,0.14776,113520.0,113510.0,0.00729441]
[1755833273181,0.14776,113520.0,113510.0,0.00629441]
[1755833273617,0.14776,113520.0,113510.0,0.00829441]
[1755833282232,0.16155221,113520.0,113510.0,0.00829441]
[1755833284642,0.01379221,113520.0,113510.0,0.00829441]
[1755833284851,0.16155221,113520.0,113510.0,0.01049685]
[1755833285684,0.16155221,113520.0,113510.0,0.00829441]
[1755833285910,0.14776,113520.0,113510.0,0.00829441]
[1755833288031,0.14776,113520.0,113510.0,0.00633441]
[1755833288452,0.14776,113520.0,113510.0,0.00846441]
[1755833288827,0.16155251,113520.0,113510.0,0.00846441]
[1755833291823,0.16155251,113520.0,113510.0,0.00633441]
[1755833292508,0.16155251,113520.0,113510.0,0.00846441]
[1755833293767,0.16155251,113520.0,113510.0,0.00633441]
[1755833296601,0.16155251,113520.0,113510.0,0.00846441]
[1755833303485,0.16155251,113520.0,113510.0,0.03496541]
[1755833315829,0.68137236,113520.0,113510.0,0.02964541]
[1755833316039,5.37623936,113520.0,113510.0,0.00314441]
[1755833316264,0.18137236,113520.0,113510.0,0.00314441]
[1755833316488,0.68137236,113520.0,113510.0,0.00314441]
[1755833316690,5.37623936,113520.0,113510.0,0.00214441]
[1755833316912,0.18137236,113520.0,113510.0,0.00214441]
[1755833317127,0.18137236,113520.0,113510.0,0.00014441]
[1755833317128,0.68137236,113520.0,113510.0,0.00014441]
[1755833317342,0.66757985,113520.0,113510.0,0.00014441]
[1755833317598,0.66757985,113520.0,113510.0,0.00114441]
[1755833320465,0.68137234,113520.0,113510.0,0.00114441]
[1755833321738,0.18137234,113520.0,113510.0,0.00114441]
[1755833321942,0.16155249,113520.0,113510.0,0.00114441]
[1755833323947,0.16155249,113520.0,113510.0,0.00429441]
[1755833326506,0.66155249,113520.0,113510.0,0.00429441]
[1755833326686,5.35641949,113520.0,113510.0,0.00429441]
[1755833326913,0.16155249,113520.0,113510.0,0.00429441]
[1755833327087,0.66155249,113520.0,113510.0,0.00429441]
[1755833327329,4.503622,113520.0,113510.0,0.00429441]
[1755833327723,4.51741431,113520.0,113510.0,0.00429441]
[1755833327929,0.01379231,113520.0,113510.0,0.00429441]
[1755833328510,0.16155231,113520.0,113510.0,0.00429441]
[1755833328719,0.66155231,113520.0,113510.0,0.00429441]
[1755833328931,5.16517431,113520.0,113510.0,0.00429441]
[1755833329139,0.16155231,113520.0,113510.0,0.00429441]
[1755833329348,0.66155231,113520.0,113510.0,0.00634441]
[1755833329558,5.16517431,113520.0,113510.0,0.00634441]
[1755833329776,0.16155231,113520.0,113510.0,0.00634441]
[1755833329994,0.66155231,113520.0,113510.0,0.00634441]
[1755833330205,5.16517431,113520.0,113510.0,0.00634441]
[1755833330406,0.14776,113520.0,113510.0,0.00634441]
[1755833330613,0.66155221,113520.0,113510.0,0.00634441]
[1755833330822,5.16517421,113520.0,113510.0,0.00634441]
[1755833331029,0.16155221,113520.0,113510.0,0.00634441]
[1755833331246,0.66155221,113520.0,113510.0,0.00634441]
[1755833331442,5.16517421,113520.0,113510.0,0.00634441]
[1755833331649,0.16155221,113520.0,113510.0,0.00634441]
[1755833331849,0.66155221,113520.0,113510.0,0.00634441]
[1755833332099,5.16517421,113520.0,113510.0,0.00634441]
[1755833332325,0.16155221,113520.0,113510.0,0.00634441]
[1755833332544,0.66155221,113520.0,113510.0,0.00634441]
[1755833335355,0.66155221,113520.0,113510.0,0.00429441]
[1755833335566,0.66155221,113520.0,113510.0,0.00114441]
[1755833338437,0.0678,113540.0,113510.0,0.02614441]
[1755833338645,0.01379247,113520.0,113510.0,0.02614441]
[1755833339122,0.101082,113540.0,113510.0,0.05264641]
[1755833339345,4.36216394,113530.0,113510.0,0.05264641]
[1755833339565,4.47975,113520.0,113510.0,0.05264641]
[1755833339791,0.14776,113520.0,113510.0,0.05164641]
[1755833340459,0.14776,113520.0,113510.0,0.00014441]
[1755833340647,0.15396084,113520.0,113510.0,0.00014441]
[1755833340862,0.65396084,113520.0,113510.0,0.00014441]
[1755833341086,0.153961,113520.0,113510.0,0.00014441]
[1755833341299,0.153961,113520.0,113510.0,0.00114441]
[1755833341687,0.1693571,113520.0,113510.0,0.00114441]
[1755833341884,0.18314971,113520.0,113510.0,0.00114441]
[1755833342335,0.17694871,113520.0,113510.0,0.00114441]
[1755833343191,0.16775345,113520.0,113500.0,0.055244]
[1755833343408,4.54363947,113520.0,113500.0,0.0255]
[1755833343644,4.33199,113510.0,113500.0,0.0255]
[1755833344489,4.33199,113510.0,113480.0,0.26994]
[1755833344703,4.33199,113510.0,113480.0,0.00324]
[1755833344704,0.1478,113500.0,113480.0,0.00324]
[1755833345580,0.16159463,113500.0,113480.0,0.00324]
[1755833347021,0.1478,113500.0,113480.0,0.00324]
[1755833348855,0.16159445,113500.0,113480.0,0.00324]
[1755833356028,0.16159445,113500.0,113470.0,0.10018404]
[1755833356229,0.1871845,113500.0,113470.0,0.10018404]
[1755833356465,0.1871845,113500.0,113470.0,0.09694404]
[1755833356694,0.1871845,113500.0,113470.0,0.10018404]
[1755833357038,4.83199,113490.0,113470.0,0.029746]
[1755833357248,4.33199,113490.0,113470.0,0.029746]
[1755833357429,4.41885965,113490.0,113470.0,0.029746]
[1755833357633,0.08686965,113490.0,113470.0,0.029746]
[1755833357888,0.2136935,113500.0,113470.0,0.00324]
[1755833358095,4.83199,113490.0,113470.0,0.00324]
[1755833358305,4.33199,113490.0,113470.0,0.00324]
[1755833358448,0.14808,113480.0,113470.0,0.00324]
[1755833358866,0.14808,113480.0,113470.0,0.00535]
[1755833359082,0.17417775,113480.0,113470.0,0.00535]
[1755833359500,0.16187589,113480.0,113470.0,0.00535]
[1755833359709,0.16187589,113480.0,113470.0,0.00583161]
[1755833359905,0.16187589,113480.0,113470.0,0.00048161]
[1755833360316,0.14808,113480.0,113470.0,0.00048161]
[1755833360747,0.14808,113480.0,113470.0,0.00148161]
[1755833360947,0.2155392,113480.0,113470.0,0.00048161]
[1755833361581,0.14808,113480.0,113470.0,0.00048161]
[1755833361973,0.16187681,113480.0,113470.0,0.00048161]
[1755833362962,0.16187681,113480.0,113470.0,0.00148161]
[1755833363368,0.16187681,113480.0,113470.0,0.00048161]
[1755833364382,0.16187681,113480.0,113470.0,0.00356161]
[1755833364655,0.21020628,113480.0,113470.0,0.00356161]
[1755833365129,0.16187681,113480.0,113470.0,0.00356161]
[1755833366498,0.16187681,113480.0,113470.0,0.00048161]
[1755833366748,0.16187681,113480.0,113470.0,0.00356161]
[1755833367382,0.16187681,113480.0,113470.0,0.00048161]
[1755833367599,0.16187681,113480.0,113470.0,0.00356161]
[1755833367823,0.23071569,113480.0,113470.0,0.00356161]
[1755833368274,0.16187681,113480.0,113470.0,0.00356161]
[1755833373282,0.16187681,113480.0,113470.0,0.00567161]
[1755833373738,0.16179681,113480.0,113470.0,0.00567161]
[1755833373942,0.01379681,113480.0,113470.0,0.00567161]
[1755833375680,0.0678,113500.0,113470.0,0.05567161]
[1755833375892,0.09049205,113500.0,113480.0,0.00308]
[1755833376252,0.10428794,113500.0,113480.0,0.00308]
[1755833376922,0.39796,113490.0,113480.0,0.00308]
[1755833377097,0.39796,113490.0,113480.0,0.00519]
[1755833379319,0.4127559,113490.0,113480.0,0.00519]
[1755833381249,0.1627559,113490.0,113480.0,0.00519]
[1755833382771,0.1617559,113490.0,113480.0,0.00519]
[1755833387068,0.18471149,113490.0,113470.0,0.05372161]
[1755833387280,0.18471149,113490.0,113470.0,0.05048161]
[1755833387489,0.18471149,113490.0,113480.0,0.00324]
[1755833387703,0.18471149,113490.0,113470.0,0.05048161]
[1755833387704,0.18471149,113490.0,113470.0,0.05372161]
[1755833387925,0.20123179,113490.0,113470.0,0.05372161]
[1755833390644,0.20123409,113490.0,113470.0,0.05372161]
[1755833392307,0.1782785,113490.0,113470.0,0.05372161]
[1755833392519,0.6782785,113490.0,113470.0,0.05372161]
[1755833392719,5.0112685,113490.0,113470.0,0.05372161]
[1755833392930,0.1792785,113490.0,113470.0,0.05372161]
[1755833393139,0.6627559,113490.0,113470.0,0.05372161]
[1755833393293,4.9947459,113490.0,113470.0,0.05372161]
[1755833393499,0.1868913,113490.0,113470.0,0.05372161]
[1755833394142,0.1868913,113490.0,113470.0,0.00372161]
[1755833394291,0.1868913,113490.0,113470.0,0.05372161]
[1755833394946,0.1868913,113490.0,113470.0,0.05048161]
[1755833395498,0.1868913,113490.0,113470.0,0.05372161]
[1755833396727,0.1868913,113490.0,113470.0,0.00372161]
[1755833396938,0.1868913,113490.0,113470.0,0.05372161]
[1755833397157,0.1627559,113490.0,113470.0,0.05372161]
[1755833397379,0.6627559,113490.0,113470.0,0.05372161]
[1755833400472,0.6627559,113490.0,113480.0,0.00324]
[1755833400891,0.6627559,113490.0,113470.0,0.05048161]
[1755833401095,0.9127559,113490.0,113470.0,0.05372161]
[1755833401299,0.4127559,113490.0,113470.0,0.05372161]
[1755833401722,0.4117559,113490.0,113470.0,0.05372161]
[1755833401936,0.45981149,113490.0,113470.0,0.05372161]
[1755833402170,0.46081149,113490.0,113470.0,0.05372161]
[1755833402375,0.46600948,113490.0,113470.0,0.05372161]
[1755833402586,0.46700948,113490.0,113470.0,0.05372161]
[1755833405073,0.41895389,113490.0,113470.0,0.05372161]
[1755833406739,0.41895389,113490.0,113470.0,0.05048161]
[1755833406896,0.41895389,113490.0,113470.0,0.05372161]
[1755833407319,0.27099389,113490.0,113470.0,0.05372161]
[1755833407699,0.2647959,113490.0,113480.0,0.05199]
[1755833407917,0.251,113490.0,113480.0,0.05199]
[1755833408130,0.251,113490.0,113480.0,0.05523]
[1755833408366,0.001,113490.0,113480.0,0.05523]
[1755833409039,0.23472836,113500.0,113480.0,0.05523]
[1755833409220,0.25746532,113500.0,113480.0,0.05199]
[1755833409431,0.25746532,113500.0,113490.0,0.00324]
[1755833409649,0.27126057,113500.0,113490.0,0.00324]
[1755833409872,0.52126057,113500.0,113490.0,0.00324]
[1755833410380,0.50321221,113500.0,113490.0,0.00324]
[1755833410587,0.48047525,113500.0,113490.0,0.00324]
[1755833410789,0.47947525,113500.0,113490.0,0.00324]
[1755833411009,0.33259525,113500.0,113490.0,0.00523]
[1755833411273,0.41267525,113500.0,113490.0,0.00523]
[1755833413331,0.41267525,113500.0,113490.0,0.00324]
[1755833415204,0.41267525,113500.0,113480.0,0.079747]
[1755833416318,0.41167525,113500.0,113480.0,0.079747]
[1755833416728,0.41267525,113500.0,113480.0,0.079747]
[1755833417724,0.41267525,113500.0,113480.0,0.076507]
[1755833418145,0.41267525,113500.0,113490.0,0.00308]
[1755833419352,0.41167525,113500.0,113490.0,0.00308]
[1755833419569,0.41167525,113500.0,113490.0,0.0051]
[1755833419806,0.41267525,113500.0,113490.0,0.0051]
[1755833421217,0.41267525,113500.0,113480.0,0.076507]
[1755833421424,0.41267525,113500.0,113490.0,0.00308]
[1755833421649,0.41267525,113500.0,113480.0,0.076507]
[1755833421883,0.41267525,113500.0,113480.0,0.079587]
[1755833422316,0.41167525,113500.0,113480.0,0.079587]
[1755833422772,0.41267525,113500.0,113480.0,0.079587]
[1755833428667,0.41267525,113500.0,113480.0,0.05308]
[1755833436263,0.41888065,113500.0,113480.0,0.05308]
[1755833436683,0.41888126,113500.0,113480.0,0.05308]
[1755833437531,0.43795224,113500.0,113480.0,0.05308]
[1755833443067,0.45450138,113500.0,113480.0,0.05]
[1755833443275,0.49995152,113500.0,113480.0,0.05]
[1755833444976,0.49995152,113500.0,113480.0,0.05308]
[1755833445594,0.49995011,113500.0,113480.0,0.05308]
[1755833446054,0.49995009,113500.0,113480.0,0.05308]
[1755833446287,0.49995004,113500.0,113480.0,0.05308]
[1755833450995,0.49995004,113500.0,113480.0,0.05]
[1755833451808,4.33199,113490.0,113480.0,0.05]
[1755833452017,4.41885965,113490.0,113480.0,0.05]
[1755833452218,0.15466965,113490.0,113480.0,0.05]
[1755833452442,0.5,113480.0,113470.0,0.00048161]
[1755833452653,4.4859938,113480.0,113470.0,0.00048161]
[1755833452893,0.1540038,113480.0,113470.0,0.00048161]
[1755833453252,0.6478,113480.0,113470.0,0.00048161]
[1755833453472,4.97979,113480.0,113470.0,0.00347161]
[1755833453687,0.1478,113480.0,113470.0,0.00549161]
[1755833453898,0.1478,113480.0,113470.0,0.00749161]
[1755833454132,0.1478,113480.0,113470.0,0.00849161]
[1755833455446,0.2156,113490.0,113470.0,0.00849161]
[1755833455651,0.2156,113490.0,113470.0,0.00550161]
[1755833455862,0.2156,113490.0,113480.0,0.00299]
[1755833456068,0.1478,113490.0,113480.0,0.00501]
[1755833456298,0.16159644,113490.0,113480.0,0.00501]
[1755833456492,0.66159644,113490.0,113480.0,0.00501]
[1755833456814,0.16159644,113490.0,113480.0,0.00501]
[1755833457017,0.16159644,113490.0,113470.0,0.00347161]
[1755833458527,0.16159644,113490.0,113470.0,0.00447161]
[1755833460807,0.16159644,113490.0,113470.0,0.00148161]
[1755833461014,0.16159644,113490.0,113480.0,0.00299]
[1755833462522,0.16159644,113490.0,113480.0,0.00399]
[1755833463641,0.01379644,113490.0,113480.0,0.00601]
[1755833464104,0.01379644,113490.0,113480.0,0.032518]
[1755833465320,0.02995608,113490.0,113480.0,0.032518]
[1755833465901,0.01379644,113490.0,113480.0,0.032518]
[1755833467168,0.1478,113500.0,113480.0,0.032518]
[1755833467388,0.01379531,113490.0,113480.0,0.032518]
[1755833468470,0.01379531,113490.0,113480.0,0.031518]
[1755833469573,0.01379531,113490.0,113480.0,0.032518]
[1755833475896,0.02995484,113490.0,113480.0,0.032518]
[1755833476115,0.01615953,113490.0,113480.0,0.027508]
[1755833477250,0.01615953,113490.0,113480.0,0.001]
[1755833478992,0.02995554,113490.0,113480.0,0.001]
[1755833480159,4.86194554,113490.0,113480.0,0.001]
[1755833480368,0.02995554,113490.0,113480.0,0.001]
[1755833480588,0.52995554,113490.0,113480.0,0.001]
[1755833488740,0.52995554,113490.0,113470.0,0.00048161]
[1755833488954,0.64804,113480.0,113470.0,0.00048161]
[1755833489168,0.23490965,113480.0,113470.0,0.00048161]
[1755833489381,0.14804,113480.0,113470.0,0.00048161]
[1755833490776,0.14804,113480.0,113470.0,0.00359161]
[1755833490984,0.64804,113480.0,113470.0,0.00359161]
[1755833491186,4.98003,113480.0,113470.0,0.00359161]
[1755833491406,0.14804,113480.0,113470.0,0.00359161]
[1755833491610,0.67271955,113480.0,113470.0,0.00359161]
[1755833491905,0.17271955,113480.0,113470.0,0.00359161]
[1755833494368,0.17271955,113480.0,113470.0,0.00572161]
[1755833494575,0.17271955,113480.0,113470.0,0.00359161]
[1755833495544,0.17271955,113480.0,113470.0,0.00572161]
[1755833496163,0.09775554,113490.0,113470.0,0.00572161]
[1755833496395,4.33199,113480.0,113470.0,0.00572161]